bitfinex-derivatives/quotes_SOLF0:USTF0_20250905
["timestamp","ask_amount","ask_price","bid_price","bid_amount"]
[1757104945293,0.03344247,205.4,205.39,7.93]
[1757104945493,0.03344247,205.4,205.39,10.05252368]
[1757104952394,8.06344247,205.4,205.31,7.93]
[1757104952698,8.06344247,205.4,205.21,68.2151]
[1757104952699,8.06344247,205.4,205.33,10.05252368]
[1757104953100,8.03,205.4,205.33,10.05252368]
[1757104953295,0.03468592,205.39,205.33,10.05252368]
[1757104954000,0.03468592,205.39,205.33,7.93]
[1757104954595,0.03468592,205.39,205.33,10.05252368]
[1757104955002,0.03468592,205.39,205.33,7.93]
[1757104955198,0.03468592,205.39,205.35,7.93]
[1757104955800,0.03468592,205.39,205.34,2.12252368]
[1757104956200,0.03468592,205.39,205.36,7.93]
[1757104956400,0.03468592,205.39,205.35,4.3824]
[1757104956597,0.03468592,205.39,205.34,2.12252368]
[1757104956794,0.03468592,205.39,205.35,7.93]
[1757104956994,8.06468592,205.39,205.33,10.05252368]
[1757104957503,8.03,205.37,205.29,10.05252368]
[1757104957699,2.12252368,205.36,205.29,7.93]
[1757104958005,0.0359068,205.35,205.33,7.93]
[1757104958707,0.0359068,205.35,205.34,10.05252368]
[1757104960097,8.03,205.46,205.34,2.60252368]
[1757104960294,8.03,205.46,205.31,68.1837]
[1757104960295,8.03,205.46,205.39,10.05252368]
[1757104960703,2.12252368,205.47,205.41,2.12252368]
[1757104961099,10.15252368,205.47,205.41,2.12252368]
[1757104962306,8.03,205.47,205.41,2.12252368]
[1757104963406,8.03,205.47,205.4,3.31794427]
[1757104963597,3.31794427,205.53,205.41,7.93]
[1757104963598,8.03,205.52,205.41,7.93]
[1757104963801,8.03,205.52,205.43,3.31794427]
[1757104964007,8.03,205.52,205.43,11.24794427]
[1757104964507,8.03,205.52,205.43,7.93]
[1757104969017,8.03,205.52,205.44,3.31794427]
[1757104973217,11.34794427,205.52,205.41,3.31794427]
[1757104973811,11.34794427,205.52,205.4,7.66]
[1757104974014,3.31794427,205.49,205.4,7.66]
[1757104974214,8.0,205.48,205.4,7.66]
[1757104975623,8.0,205.48,205.37,3.31794427]
[1757104978716,8.0,205.48,205.36,7.66]
[1757104978717,3.31794427,205.46,205.36,7.66]
[1757104979013,8.0,205.45,205.36,7.66]
[1757104980218,8.0,205.45,205.34,3.31794427]
[1757104980417,3.31794427,205.43,205.33,7.66]
[1757104980624,8.0,205.42,205.33,7.66]
[1757104980816,11.31794427,205.46,205.35,7.66]
[1757104983320,11.31794427,205.46,205.37,3.31794427]
[1757104983722,11.31794427,205.46,205.37,10.97794427]
[1757104989324,8.0,205.45,205.37,10.97794427]
[1757104989932,8.0,205.45,205.37,7.66]
[1757104990131,8.0,205.42,205.32,7.66]
[1757104991427,3.31794427,205.4,205.31,7.66]
[1757104991730,8.0,205.39,205.31,7.66]
[1757104994830,8.0,205.49,205.31,7.66]
[1757104995027,11.31794427,205.44,205.31,7.66]
[1757104995227,8.0,205.44,205.34,7.66]
[1757104995526,15.23794427,205.47,205.3,3.31794427]
[1757104995527,11.31794427,205.47,205.37,7.66]
[1757104995928,8.0,205.47,205.37,7.66]
[1757104996634,8.0,205.52,205.43,7.66]
[1757104998130,3.31794427,205.56,205.45,3.31794427]
[1757104998331,8.0,205.55,205.46,7.66]
[1757105001632,8.0,205.55,205.42,7.69864427]
[1757105001633,8.07,205.52,205.42,11.25794427]
[1757105001931,3.31794427,205.5,205.42,7.94]
[1757105002137,8.07,205.49,205.42,7.94]
[1757105007738,8.07,205.49,205.37,7.94]
[1757105007932,8.07,205.49,205.4,7.94]
[1757105016341,8.07,205.47,205.4,7.94]
[1757105018939,3.31794427,205.5,205.4,7.94]
[1757105019146,11.38794427,205.5,205.4,7.94]
[1757105024942,11.38794427,205.5,205.41,7.94]
[1757105025545,2.12360666,205.49,205.42,2.12360666]
[1757105026139,2.12360666,205.49,205.41,7.94]
[1757105026346,2.12360666,205.47,205.41,7.94]
[1757105028949,2.12360666,205.45,205.41,7.94]
[1757105029443,2.12360666,205.43,205.37,7.55]
[1757105029644,10.09360666,205.41,205.37,7.55]
[1757105030245,313.6,205.59,205.4,2.12360666]
[1757105030246,7.97,205.49,205.4,2.12360666]
[1757105030443,2.12360666,205.46,205.4,9.67360666]
[1757105031245,10.09360666,205.44,205.36,9.67360666]
[1757105031452,2.12360666,205.42,205.36,9.67360666]
[1757105031950,2.12360666,205.42,205.36,7.55]
[1757105032147,10.09360666,205.4,205.36,7.55]
[1757105033253,2.12360666,205.4,205.33,2.12360666]
[1757105033553,2.12360666,205.38,205.32,7.55]
[1757105033942,10.09360666,205.38,205.32,7.55]
[1757105036360,2.12360666,205.4,205.33,2.12360666]
[1757105040457,7.97,205.42,205.35,2.12360666]
[1757105040657,2.12360666,205.41,205.35,2.12360666]
[1757105040952,7.97,205.42,205.36,7.55]
[1757105041454,7.97,205.42,205.38,7.55]
[1757105042448,10.09360666,205.42,205.29,7.55]
[1757105042757,10.09360666,205.42,205.35,2.12360666]
[1757105045154,7.97,205.42,205.36,7.55]
[1757105045356,10.09360666,205.42,205.36,7.55]
[1757105054867,7.97,205.42,205.36,7.55]
[1757105055269,2.12360666,205.41,205.35,2.12360666]
[1757105055563,2.12360666,205.41,205.31,7.55]
[1757105055761,2.12360666,205.37,205.31,7.55]
[1757105056267,10.09360666,205.37,205.31,7.55]
[1757105056872,2.12360666,205.37,205.31,7.55]
[1757105059275,2.12360666,205.39,205.32,2.12360666]
[1757105060674,9.58360666,205.43,205.37,8.01]
[1757105062175,7.46,205.5,205.4,10.13360666]
[1757105062375,9.58360666,205.5,205.42,2.12360666]
[1757105064782,7.46,205.47,205.41,2.12360666]
[1757105068984,7.46,205.47,205.43,2.12360666]
[1757105069483,2.12360666,205.49,205.43,2.12360666]
[1757105069787,7.46,205.48,205.43,2.12360666]
[1757105070228,2.12360666,205.49,205.43,2.12360666]
[1757105070884,7.46,205.48,205.43,2.12360666]
[1757105071080,2.12360666,205.49,205.43,2.12360666]
[1757105071484,7.46,205.48,205.43,2.12360666]
[1757105071980,2.12360666,205.49,205.43,2.12360666]
[1757105072385,7.46,205.48,205.43,2.12360666]
[1757105072588,2.12360666,205.49,205.43,2.12360666]
[1757105073682,7.46,205.48,205.42,2.12360666]
[1757105073882,7.46,205.48,205.41,2.12360666]
[1757105079389,7.46,205.46,205.4,10.13360666]
[1757105079789,7.46,205.46,205.4,2.12360666]
[1757105085499,7.46,205.46,205.39,8.01]
[1757105088898,7.38,205.51,205.41,3.31843638]
[1757105089094,7.38,205.51,205.42,7.73]
[1757105091801,28.9,205.55,205.37,3.31843638]
[1757105091802,7.38,205.47,205.37,3.31843638]
[1757105092100,7.38,205.47,205.36,7.73]
[1757105094406,3.31843638,205.45,205.36,7.73]
[1757105094607,7.38,205.41,205.32,7.73]
[1757105099807,7.38,205.41,205.33,3.31843638]
[1757105100118,7.38,205.46,205.37,7.73]
[1757105101308,7.38,205.46,205.39,3.31843638]
[1757105101610,7.38,205.46,205.4,7.73]
[1757105103204,7.38,205.46,205.39,3.31843638]
[1757105103511,7.38,205.46,205.36,11.04843638]
[1757105104008,3.31843638,205.47,205.36,11.04843638]
[1757105104212,7.38,205.46,205.36,11.04843638]
[1757105104413,3.31843638,205.47,205.36,11.04843638]
[1757105105610,7.38,205.46,205.36,11.04843638]
[1757105106006,3.31843638,205.47,205.36,11.04843638]
[1757105106205,7.38,205.46,205.36,11.04843638]
[1757105110412,7.38,205.46,205.36,7.73]
[1757105110613,3.31843638,205.44,205.33,3.31843638]
[1757105110816,7.38,205.43,205.33,7.73]
[1757105111007,3.31843638,205.41,205.33,7.73]
[1757105111210,7.38,205.4,205.33,7.73]
[1757105112023,7.38,205.4,205.29,7.73]
[1757105112212,7.38,205.37,205.29,7.73]
[1757105115619,3.31843638,205.35,205.21,317.70651619]
[1757105115817,7.38,205.34,205.22,7.73]
[1757105116419,7.38,205.34,205.25,7.73]
[1757105118212,3.31843638,205.32,205.21,3.31843638]
[1757105118414,7.37,205.31,205.22,7.44]
[1757105120021,3.31843638,205.29,205.22,7.44]
[1757105120324,7.37,205.28,205.16,7.44]
[1757105125528,7.37,205.28,205.18,3.31843638]
[1757105125828,7.37,205.28,205.19,7.44]
[1757105126028,10.68843638,205.31,205.19,7.44]
[1757105126228,7.37,205.31,205.22,7.44]
[1757105127830,7.37,205.31,205.22,11.825]
[1757105128036,31.77,205.37,205.25,7.44]
[1757105128328,7.37,205.37,205.25,7.44]
[1757105129628,7.37,205.31,205.21,7.44]
[1757105130726,7.37,205.31,205.23,3.31843638]
[1757105131128,7.37,205.31,205.24,7.44]
[1757105133429,3.31843638,205.32,205.2,10.75843638]
[1757105133632,7.37,205.31,205.2,10.75843638]
[1757105134038,3.31843638,205.32,205.2,10.75843638]
[1757105134241,7.37,205.31,205.2,10.75843638]
[1757105135035,3.31843638,205.32,205.2,10.75843638]
[1757105135535,7.37,205.31,205.2,10.75843638]
[1757105135726,3.31843638,205.32,205.2,10.75843638]
[1757105135932,7.37,205.31,205.2,10.75843638]
[1757105136842,7.37,205.31,205.2,3.31843638]
[1757105137044,7.37,205.31,205.21,7.44]
[1757105139647,7.37,205.31,205.23,7.44]
[1757105140245,29.81,205.35,205.25,3.31843638]
[1757105140447,29.81,205.35,205.26,7.44]
[1757105143156,7.37,205.35,205.26,7.44]
[1757105147560,2.12667961,205.34,205.27,2.12667961]
[1757105148462,7.42,205.31,205.25,2.12667961]
[1757105148765,9.54667961,205.34,205.27,9.94667961]
[1757105151254,2.12667961,205.33,205.27,7.82]
[1757105152055,7.42,205.32,205.27,7.82]
[1757105152260,2.12667961,205.33,205.27,7.82]
[1757105152754,7.42,205.32,205.27,7.82]
[1757105152960,9.54667961,205.33,205.27,7.82]
[1757105155862,9.54667961,205.33,205.27,9.94667961]
[1757105157561,2.12667961,205.33,205.28,7.82]
[1757105157863,2.12667961,205.33,205.27,9.94667961]
[1757105158663,7.42,205.32,205.27,7.82]
[1757105158867,9.54667961,205.33,205.27,7.82]
[1757105159457,2.12667961,205.31,205.25,2.12667961]
[1757105159660,9.54667961,205.31,205.24,7.82]
[1757105159869,24.78,205.38,205.24,7.82]
[1757105159870,2.12667961,205.29,205.24,7.82]
[1757105160062,7.42,205.28,205.21,9.94667961]
[1757105161865,2.12667961,205.29,205.24,7.82]
[1757105162065,2.12667961,205.31,205.23,2.12667961]
[1757105162266,2.12667961,205.31,205.24,7.82]
[1757105162570,7.42,205.28,205.19,7.82]
[1757105162867,7.42,205.26,205.19,7.82]
[1757105163067,7.42,205.26,205.19,9.94667961]
[1757105164271,2.12667961,205.25,205.17,7.82]
[1757105164569,2.12667961,205.25,205.19,2.12667961]
[1757105165070,7.42,205.26,205.19,2.12667961]
[1757105165367,2.12667961,205.25,205.19,2.12667961]
[1757105166870,2.12667961,205.25,205.17,7.82]
[1757105167070,2.12667961,205.25,205.18,2.12667961]
[1757105167463,2.12667961,205.25,205.21,7.82]
[1757105167663,2.12667961,205.27,205.21,7.82]
[1757105167867,2.12667961,205.27,205.22,2.12667961]
[1757105168065,2.12667961,205.27,205.23,7.82]
[1757105168368,2.12667961,205.31,205.24,2.12667961]
[1757105168569,9.54667961,205.33,205.25,9.94667961]
[1757105169571,7.42,205.33,205.27,2.12667961]
[1757105173773,7.42,205.33,205.26,7.82]
[1757105173970,2.12667961,205.32,205.26,7.82]
[1757105174173,9.54667961,205.33,205.26,7.82]
[1757105175569,9.54667961,205.33,205.26,9.94667961]
[1757105176473,7.42,205.32,205.26,9.94667961]
[1757105177776,7.42,205.32,205.26,7.82]
[1757105177976,7.42,205.3,205.23,2.12667961]
[1757105178272,2.12667961,205.29,205.23,2.12667961]
[1757105178667,9.64667961,205.27,205.21,2.12667961]
[1757105178872,7.52,205.24,205.2,7.82]
[1757105180272,7.52,205.23,205.2,7.82]
[1757105180474,7.52,205.23,205.2,7.85263949]
[1757105186171,2.12667961,205.22,205.2,0.03263949]
[1757105186386,9.64667961,205.22,205.2,0.03263949]
[1757105188082,2.15850707,205.24,205.21,7.91]
[1757105188284,0.03182746,205.24,205.2,0.03263949]
[1757105188486,0.03182746,205.24,205.21,7.91]
[1757105188977,0.03182746,205.24,205.2,0.03263949]
[1757105189278,0.03182746,205.24,205.21,7.91]
[1757105189877,0.03182746,205.24,205.2,0.03263949]
[1757105190182,9.64667961,205.22,205.2,0.03263949]
[1757105192086,2.15850707,205.24,205.2,0.03263949]
[1757105192288,7.52,205.23,205.2,7.94263949]
[1757105192887,2.15850707,205.24,205.2,0.03263949]
[1757105193385,7.52,205.23,205.2,0.03263949]
[1757105194189,7.52,205.23,205.2,7.94263949]
[1757105194490,2.15850707,205.24,205.2,0.03263949]
[1757105194788,7.52,205.23,205.2,0.03263949]
[1757105194987,2.15850707,205.24,205.2,7.94263949]
[1757105195287,2.15850707,205.24,205.21,7.91]
[1757105196090,9.67850707,205.24,205.21,7.91]
[1757105196290,7.52,205.23,205.2,0.03263949]
[1757105196494,7.52,205.23,205.2,7.94263949]
[1757105197892,7.52,205.23,205.2,0.03263949]
[1757105198081,2.15850707,205.24,205.2,0.03263949]
[1757105198281,7.52,205.23,205.2,0.03263949]
[1757105199087,2.15850707,205.24,205.2,0.03263949]
[1757105199392,7.52,205.23,205.2,0.03263949]
[1757105199781,2.15850707,205.24,205.2,0.03263949]
[1757105199985,7.52,205.23,205.2,0.03263949]
[1757105200393,2.15850707,205.24,205.2,0.03263949]
[1757105200885,7.52,205.23,205.2,0.03263949]
[1757105201288,2.15850707,205.24,205.2,0.03263949]
[1757105201489,7.52,205.23,205.2,0.03263949]
[1757105201682,2.15850707,205.24,205.2,0.03263949]
[1757105201884,7.52,205.23,205.2,0.03263949]
[1757105202490,2.15850707,205.24,205.2,0.03263949]
[1757105202794,7.52,205.23,205.2,0.03263949]
[1757105203184,2.15850707,205.24,205.2,0.03263949]
[1757105203593,7.52,205.23,205.2,0.03263949]
[1757105203794,2.15850707,205.24,205.2,0.03263949]
[1757105203988,7.52,205.23,205.2,0.03263949]
[1757105204194,0.03182746,205.24,205.21,7.91]
[1757105204696,7.55182746,205.24,205.21,7.91]
[1757105206794,7.52,205.23,205.2,7.94263949]
[1757105209603,0.03182746,205.24,205.2,0.03263949]
[1757105209804,0.03182746,205.24,205.21,7.56]
[1757105210002,7.80182746,205.24,205.21,7.56]
[1757105211004,0.03182746,205.24,205.2,0.03263949]
[1757105211203,0.03182746,205.24,205.21,7.56]
[1757105212600,0.03182746,205.24,205.2,0.03263949]
[1757105212808,0.03182746,205.24,205.21,7.56]
[1757105213509,7.80182746,205.24,205.21,7.56]
[1757105215003,7.77,205.23,205.2,7.59263949]
[1757105215709,7.77,205.23,205.21,7.56]
[1757105217812,0.03182746,205.24,205.2,0.03263949]
[1757105218011,0.03182746,205.24,205.21,7.56]
[1757105218709,7.80182746,205.24,205.21,7.56]
[1757105221108,0.03182746,205.24,205.2,0.03263949]
[1757105221315,0.03182746,205.24,205.21,7.56]
[1757105221616,7.80182746,205.24,205.21,7.56]
[1757105223709,0.03182746,205.24,205.2,7.42974868]
[1757105223915,0.03182746,205.24,205.21,7.56]
[1757105224618,7.77,205.23,205.21,7.56]
[1757105224918,7.77,205.23,205.2,7.59263949]
[1757105226713,0.03182746,205.24,205.2,0.03263949]
[1757105226911,7.77,205.23,205.2,0.03263949]
[1757105227111,0.03182746,205.24,205.2,0.03263949]
[1757105227514,7.77,205.23,205.2,0.03263949]
[1757105228208,0.03182746,205.24,205.2,0.03263949]
[1757105228408,7.77,205.23,205.2,0.03263949]
[1757105228719,0.03182746,205.24,205.2,0.03263949]
[1757105228920,7.77,205.23,205.2,0.03263949]
[1757105229219,0.03182746,205.24,205.2,0.03263949]
[1757105230115,7.77,205.23,205.2,0.03263949]
[1757105230310,0.03182746,205.24,205.2,0.03263949]
[1757105230508,7.77,205.23,205.2,0.03263949]
[1757105231014,11.09564083,205.23,205.2,0.03263949]
[1757105236712,3.32564083,205.19,205.08,7.56]
[1757105236913,7.77,205.18,205.08,7.56]
[1757105237424,7.77,205.18,205.09,3.32564083]
[1757105237719,7.77,205.22,205.1,7.56]
[1757105237923,0.0354125,205.16,205.13,7.56]
[1757105238120,0.0354125,205.16,205.15,10.88564083]
[1757105238513,7.62,205.26,205.16,8.05]
[1757105238718,7.62,205.26,205.18,3.32564083]
[1757105239022,7.62,205.26,205.19,8.05]
[1757105239725,3.32564083,205.31,205.21,3.32564083]
[1757105239726,7.62,205.3,205.21,3.32564083]
[1757105240024,7.62,205.3,205.22,8.05]
[1757105244429,7.62,205.28,205.18,11.37564083]
[1757105246931,7.62,205.28,205.18,8.05]
[1757105251933,7.62,205.25,205.18,8.05]
[1757105252728,3.32564083,205.23,205.15,8.05]
[1757105252928,7.62,205.22,205.15,8.05]
[1757105256428,10.94564083,205.26,205.15,8.05]
[1757105256933,10.94564083,205.26,205.16,4.3863]
[1757105257232,7.62,205.26,205.17,8.05]
[1757105258932,7.62,205.26,205.18,8.05]
[1757105259532,3.32564083,205.23,205.14,8.05]
[1757105259725,7.62,205.22,205.14,8.05]
[1757105262530,7.62,205.19,205.1,12.12146836]
[1757105262731,7.62,205.19,205.1,8.05]
[1757105265837,3.32564083,205.17,205.1,8.05]
[1757105266043,7.62,205.16,205.1,8.05]
[1757105266744,7.62,205.16,205.07,8.05]
[1757105266942,7.62,205.13,205.07,8.05]
[1757105269447,2.13132092,205.11,205.04,2.13132092]
[1757105269641,2.13132092,205.11,205.05,8.12]
[1757105269842,7.62,205.13,205.05,8.12]
[1757105270041,2.13132092,205.12,205.05,8.12]
[1757105277651,2.13132092,205.12,205.06,2.13132092]
[1757105278052,2.13132092,205.12,205.07,8.12]
[1757105279050,2.13132092,205.12,205.06,2.13132092]
[1757105279851,2.13132092,205.12,205.07,8.12]
[1757105280155,2.13132092,205.12,205.06,10.25132092]
[1757105280450,2.13132092,205.12,205.06,8.12]
[1757105284554,2.13132092,205.12,205.06,10.25132092]
[1757105284951,2.13132092,205.12,205.06,8.12]
[1757105285351,7.51,205.11,205.06,8.12]
[1757105285551,9.64132092,205.1,205.04,2.13132092]
[1757105286350,9.64132092,205.1,205.03,8.12]
[1757105290358,19.8,205.18,205.02,10.25132092]
[1757105290359,2.13132092,205.08,205.02,10.25132092]
[1757105290754,2.13132092,205.08,205.02,8.12]
[1757105291461,2.13132092,205.07,205.01,2.13132092]
[1757105291665,9.64132092,205.09,205.02,8.12]
[1757105292458,38.26,205.14,205.04,8.12]
[1757105292662,2.13132092,205.11,205.04,8.12]
[1757105293160,7.51,205.1,205.04,8.12]
[1757105293567,7.51,205.1,205.04,10.25132092]
[1757105294270,2.13132092,205.09,205.04,2.13132092]
[1757105294568,2.13132092,205.1,205.05,8.12]
[1757105294760,7.51,205.09,205.05,8.12]
[1757105298873,7.51,205.09,205.04,2.13132092]
[1757105299076,7.51,205.09,205.05,7.58]
[1757105301577,7.51,205.09,205.04,2.13132092]
[1757105302077,7.51,205.09,205.05,7.58]
[1757105302466,7.37,205.09,205.02,2.13132092]
[1757105302666,7.37,205.09,205.03,7.58]
[1757105303379,9.50132092,205.06,205.0,9.71132092]
[1757105304281,9.50132092,205.06,205.0,7.58]
[1757105305278,9.50132092,205.06,205.0,9.71132092]
[1757105307478,9.50132092,205.06,205.0,7.58]
[1757105307672,9.50132092,205.06,205.0,9.71132092]
[1757105307873,7.37,205.06,205.0,9.71132092]
[1757105308079,9.50132092,205.06,205.0,9.71132092]
[1757105310680,2.13132092,205.06,205.01,7.58]
[1757105311086,2.13132092,205.06,205.0,2.13132092]
[1757105311287,2.13132092,205.06,205.01,2.13132092]
[1757105311580,9.50132092,205.06,205.01,2.13132092]
[1757105311788,9.50132092,205.06,205.02,7.58]
[1757105313984,5.45031898,205.16,205.04,7.58]
[1757105313985,2.13132092,205.11,205.04,7.58]
[1757105314290,9.50132092,205.11,205.04,7.58]
[1757105314484,2.13132092,205.09,205.04,7.58]
[1757105314685,7.37,205.08,205.04,7.58]
[1757105316590,2.13132092,205.09,205.04,7.58]
[1757105316987,7.37,205.08,205.04,7.58]
[1757105317289,2.13132092,205.09,205.04,7.58]
[1757105317488,7.37,205.08,205.04,7.58]
[1757105317690,2.13132092,205.09,205.04,7.58]
[1757105317890,7.37,205.08,205.04,7.58]
[1757105318090,2.13132092,205.09,205.04,7.58]
[1757105318588,7.37,205.08,205.04,7.58]
[1757105319182,9.50132092,205.11,205.05,2.13132092]
[1757105321992,7.37,205.11,205.05,2.13132092]
[1757105326798,9.50132092,205.11,205.05,2.13132092]
[1757105329598,2.13132092,205.09,205.0,8.11]
[1757105329802,2.13132092,205.07,205.0,10.24132092]
[1757105330097,9.77132092,205.07,205.0,10.24132092]
[1757105331396,7.64,205.04,205.0,8.11]
[1757105331604,7.64,205.06,205.0,8.11]
[1757105346111,7.64,205.09,205.0,8.11]
[1757105346501,7.64,205.09,205.02,3.33253553]
[1757105346700,7.64,205.09,205.03,8.11]
[1757105347509,7.64,205.13,205.03,8.11]
[1757105355215,7.64,205.13,205.05,3.33253553]
[1757105355411,7.64,205.17,205.09,8.11]
[1757105355814,7.64,205.17,205.11,3.33253553]
[1757105356117,7.64,205.22,205.12,8.11]
[1757105358717,7.64,205.22,205.14,3.33253553]
[1757105358921,7.64,205.22,205.15,7.77]
[1757105365328,7.64,205.22,205.16,7.77]
[1757105366625,7.74,205.26,205.16,7.77]
[1757105366826,7.74,205.26,205.18,3.33253553]
[1757105367125,7.74,205.26,205.19,7.77]
[1757105373521,7.74,205.26,205.19,11.10253553]
[1757105373728,7.74,205.3,205.2,7.77]
[1757105375631,11.07253553,205.3,205.2,7.77]
[1757105380133,7.74,205.26,205.2,7.77]
[1757105391435,7.74,205.26,205.21,2.1279594]
[1757105391741,2.1279594,205.32,205.25,2.1279594]
[1757105391941,7.42,205.31,205.25,10.1779594]
[1757105395037,2.1279594,205.32,205.25,2.1279594]
[1757105395346,2.1279594,205.32,205.26,8.05]
[1757105396341,7.42,205.33,205.27,2.1279594]
[1757105397142,7.42,205.33,205.28,8.05]
[1757105398036,2.1279594,205.35,205.27,10.1779594]
[1757105398037,7.42,205.34,205.27,10.1779594]
[1757105398432,7.42,205.34,205.29,2.1279594]
[1757105398837,7.42,205.34,205.3,8.05]
[1757105400041,7.42,205.34,205.29,2.1279594]
[1757105400240,7.42,205.34,205.3,8.05]
[1757105400743,7.42,205.35,205.3,8.05]
[1757105400942,7.42,205.35,205.3,5.69]
[1757105401444,2.1279594,205.37,205.29,2.1279594]
[1757105401742,2.1279594,205.37,205.31,2.1279594]
[1757105402537,7.42,205.36,205.27,4.3839]
[1757105402839,2.1279594,205.35,205.22,4.06539162]
[1757105403043,2.1279594,205.33,205.27,2.1279594]
[1757105403445,9.5479594,205.33,205.27,2.1279594]
[1757105405445,7.42,205.3,205.24,2.1279594]
[1757105408142,7.42,205.3,205.25,8.05]
[1757105408346,7.42,205.3,205.24,2.1279594]
[1757105408549,7.42,205.3,205.24,10.1779594]
[1757105408853,7.42,205.33,205.27,8.05]
[1757105409147,7.42,205.37,205.3,2.1279594]
[1757105409342,2.1279594,205.36,205.3,2.1279594]
[1757105409547,2.1279594,205.34,205.28,2.1279594]
[1757105409749,7.42,205.33,205.28,2.1279594]
[1757105409946,9.5479594,205.34,205.28,2.1279594]
[1757105411648,9.5479594,205.34,205.27,8.05]
[1757105411950,7.42,205.33,205.29,10.1779594]
[1757105412152,7.42,205.33,205.29,8.05]
[1757105412451,10.38,205.42,205.29,8.05]
[1757105412452,2.1279594,205.35,205.29,10.1779594]
[1757105412748,7.42,205.34,205.29,10.1779594]
[1757105413152,2.1279594,205.35,205.29,10.1779594]
[1757105413347,7.42,205.34,205.29,10.1779594]
[1757105414047,9.5479594,205.35,205.29,10.1779594]
[1757105421361,7.42,205.35,205.31,2.1279594]
[1757105421554,7.73,205.38,205.32,7.82]
[1757105421753,7.73,205.38,205.33,2.1279594]
[1757105422260,7.73,205.42,205.35,2.1279594]
[1757105422448,7.73,205.42,205.36,7.82]
[1757105422854,7.73,205.4,205.36,7.82]
[1757105423252,2.1279594,205.41,205.36,7.82]
[1757105423457,7.73,205.4,205.36,7.82]
[1757105423663,7.73,205.4,205.35,2.1279594]
[1757105423855,2.1279594,205.41,205.36,7.82]
[1757105424053,7.73,205.43,205.37,2.1279594]
[1757105424252,2.1279594,205.45,205.38,7.82]
[1757105424959,7.73,205.44,205.38,7.82]
[1757105427863,2.1279594,205.43,205.38,7.82]
[1757105428163,7.73,205.42,205.38,7.82]
[1757105431360,2.1279594,205.43,205.37,2.1279594]
[1757105432159,9.8579594,205.43,205.37,2.1279594]
[1757105438171,2.1279594,205.43,205.37,2.1279594]
[1757105438362,2.1279594,205.43,205.38,7.82]
[1757105438562,2.1279594,205.43,205.37,2.1279594]
[1757105439174,2.1279594,205.43,205.37,9.9479594]
[1757105441778,7.73,205.44,205.37,9.9479594]
[1757105441971,7.73,205.5,205.41,2.1279594]
[1757105442175,8.07233752,205.58,205.41,2.1279594]
[1757105442176,2.1279594,205.49,205.41,2.1279594]
[1757105442375,7.73,205.48,205.41,2.1279594]
[1757105442769,7.73,205.48,205.42,7.82]
[1757105445575,7.73,205.48,205.43,2.1279594]
[1757105445768,2.1279594,205.51,205.43,2.1279594]
[1757105445769,2.1279594,205.51,205.44,7.82]
[1757105445972,7.73,205.5,205.44,7.82]
[1757105446173,2.1279594,205.49,205.44,7.82]
[1757105446367,7.73,205.48,205.43,2.1279594]
[1757105446570,7.73,205.48,205.44,7.82]
[1757105448681,7.73,205.48,205.44,7.95]
[1757105449481,7.73,205.48,205.43,2.1279594]
[1757105449778,7.73,205.48,205.44,7.95]
[1757105450981,7.73,205.48,205.43,2.1279594]
[1757105451177,7.73,205.48,205.44,7.95]
[1757105451384,7.73,205.48,205.43,2.1279594]
[1757105451583,7.73,205.48,205.42,7.95]
[1757105452576,7.52,205.52,205.42,7.95]